[Event "AUT Bundesliga 2021-22"]
[Site "Graz"]
[Date "2022.04.23"]
[Round "11.6"]
[White "Atlas, Dmitry"]
[Black "Steiner, Adam"]
[Result "0-1"]
[ECO "B12"]
[WhiteElo "2232"]
[BlackElo "2220"]
[Annotator "TA"]
[PlyCount "100"]
[EventDate "2021.01.17"]
[EventType "team-tourn"]
[EventCountry "AUT"]
[SourceTitle "playchess.com"]
[Source "ChessBase"]
[SourceQuality "1"]
[TimeControl "40/5400+30:1800+30"]

{[%evp 9,100,-20,0,-1,0,-24,-30,-58,-42,-76,45,2,30,0,0,0,95,105,90,72,99,0,129,129,137,56,72,23,16,-40,-21,-47,-60,-58,-50,-49,-51,-50,-21,-28,-23,-95,-10,-97,-104,-196,-195,-207,-209,-204,-208,-195,-194,-213,-208,-215,-201,-202,-195,-187,-188,-243,-243,-317,-302,-289,-300,-297,-276,-514,-501,-436,-299,-306,-312,-461,-473,-503,-501,-382,-77,-83,-68,-70,-80,-710,-833,-750,-738,-1440,-1165,-957,-907]} 1. e4 {[%emt 0:00:03]} c6 {[%emt 0:00:05]} 2. d4 {[%emt 0:00:07][%cal Bd2d4,Bd4c5][%mdl 32]} d5 {[%emt 0:00:02]} 3. e5 {[%emt 0:00:09]} c5 {[%emt 0:00:06]} 4. dxc5 {[%emt 0:00:07]} e6 {[%emt 0:00:10]} 5. Qg4 {[%emt 0:00:09]} h5 {[%emt 0:00:51]} 6. Qg3 {[%emt 0:00:09] B12: Caro-Kann: Advance Variation.} h4 {[%emt 0:00:47]} 7. Qg4 {[%emt 0:00:07]} (7. Bb5+ Bd7 8. Qb3 (8. Bxd7+ Nxd7 9. Qb3 Bxc5 $17) 8... Bxc5 $15) 7... Nh6 {[%emt 0:00:14]} 8. Qf4 {[%emt 0:00:16] Black has an edge.} Bxc5 {[%emt 0:03:03]} 9. Bd3 {[%emt 0:01:06] [#]} g6 $146 {[%emt 0:09:41]} (9... f5 $17 {And now ...Ng4 would win.} 10. exf6 Qxf6) ({Predecessor:} 9... Nc6 10. a3 g5 11. Qxg5 Qxg5 12. Bxg5 Nxe5 13. Bxh4 Nxd3+ 14. cxd3 Bd4 15. Nc3 Nf5 {1-0 (34) Indjic,A (2618)-Ostrovskiy,A (2425) Chess.com INT 2020}) 10. Nh3 {[%emt 0:14:00]} Nc6 {[%emt 0:02:00]} 11. O-O {[%emt 0:00:25]} Bd7 {[%emt 0:05:51]} 12. c3 {[%emt 0:03:48]} Qe7 {[%emt 0:14:30]} (12... Qc7 $11) 13. b4 $16 {[%emt 0:03:29]} Bb6 {[%emt 0:00:07][%cal Bc5b6,Bb6d8,Bd8c7,Bc7e5][%mdl 32]} 14. b5 {[%emt 0:00:14] Ba3 is the strong threat.} Na5 {[%emt 0:14:32]} 15. Qa4 {[%emt 0:01:07]} (15. Ba3 $16 Qd8 16. c4) 15... Nc4 {[%emt 0:07:49]} (15... Nf5 $11) 16. Bxc4 {[%emt 0:02:19]} dxc4 {[%emt 0:00:06]} 17. Qxc4 {[%emt 0:01:58]} (17. Na3 $16) 17... Qc5 $14 {[%emt 0:09:59]} 18. Qxh4 {[%emt 0:03:49]} ({Better is} 18. Qf4 $1 $16 {aiming for Ba3.} O-O-O 19. a4) 18... Bd8 $11 {[%emt 0:08:58]} 19. Qe4 {[%emt 0:10:09]} (19. Bg5 $11 Qxe5 20. Bxd8 Rxd8 21. a4 (21. Rd1 Nf5 $17)) 19... Bxb5 $15 {[%emt 0:02:11]} 20. Ba3 {[%emt 0:03:28]} Qc6 $36 {[%emt 0:05:39][%mdl 2048] Black fights for an advantage.} 21. Qxc6+ {[%emt 0:02:25]} Bxc6 {[%emt 0:00:02]} 22. Nd2 {[%emt 0:07:08]} Bc7 {[%emt 0:01:52][%mdl 1024] Black has compensation.} 23. Rfe1 {[%emt 0:05:34]} Nf5 {[%emt 0:01:23]} 24. Ng5 {[%emt 0:03:46]} Rd8 {[%emt 0:07:17]} 25. Nb3 {[%emt 0:12:05]} (25. Nde4 $11 {remains equal.} Bxe5 26. f4 Bxe4 27. Nxe4) 25... Rh5 {[%emt 0:02:56]} (25... Rd5 $17 26. Nf3 Nh4) 26. Ne4 {[%emt 0:03:34]} (26. f4 $1 $11) 26... Bxe5 $17 {[%emt 0:00:01] This bishop pair is nice.} 27. g4 {[%emt 0:00:23]} (27. f4 $17 {was called for.} Bxe4 28. Rxe4 Bxc3 29. Rc1) 27... Rh4 $1 $19 {[%emt 0:02:43]} (27... Bxh2+ 28. Kf1 Bxe4 29. gxh5 $11) (27... Rxh2 28. gxf5 (28. Nf6+ Bxf6 29. Kxh2 Nh4 $17) 28... Rh4 29. Ng3 Bxc3 30. fxg6 $17) 28. f3 {[%emt 0:00:08]} Bxe4 {[%emt 0:00:24]} ({Stronger than} 28... Bxh2+ 29. Kg2 Nd6 30. Nxd6+ Bxd6 31. Bxd6 Rxd6 32. Kg3) ({Less strong is} 28... Rxh2 29. gxf5 gxf5 30. Nd6+ $1 (30. Nf6+ Bxf6 31. Kxh2 Bxc3 $11) 30... Bxd6 31. Bxd6 $11) 29. Rxe4 {[%emt 0:00:13]} Bxh2+ {[%emt 0:00:55]} 30. Kg2 {[%emt 0:03:20]} Nd6 {[%emt 0:00:06]} 31. Ree1 {[%emt 0:00:41]} Bf4 {[%emt 0:00:28]} 32. Rh1 {[%emt 0:00:21]} Rxh1 {[%emt 0:00:47]} 33. Rxh1 {[%emt 0:00:22]} Nc4 {[%emt 0:00:48]} 34. Rh8+ {[%emt 0:01:04]} Kd7 {[%emt 0:00:00]} 35. Rh7 {[%emt 0:00:06]} (35. Rxd8+ $142 Kxd8 36. Bc1 Bxc1 37. Nxc1) 35... e5 {[%emt 0:01:01]} 36. Bb4 {[%emt 0:01:47]} Kc6 {[%emt 0:00:31]} 37. Rxf7 {[%emt 0:00:17] [#]} b6 $1 {[%emt 0:00:31]} 38. Rxa7 {[%emt 0:01:00]} Rh8 {[%emt 0:00:18]} 39. Rg7 $2 {[%emt 0:01:55]} (39. Rf7 {was worth a try.} Ne3+ 40. Kg1) 39... Rh2+ {[%emt 0:00:23][%mdl 64] Skewer} 40. Kg1 {[%emt 0:00:00]} g5 {[%emt 0:00:00]} 41. Rg6+ {[%emt 0:02:17] [#]} Kb5 $1 {[%emt 0:03:55]} 42. Rxg5 {[%emt 0:07:02]} (42. Be7 $142 Rxa2 43. Bxg5 Bxg5 44. Rxg5) 42... Rxa2 {[%emt 0:03:29]} 43. Nd4+ {[%emt 0:07:21]} Ka4 {[%emt 0:00:08]} 44. Ne6 {[%emt 0:00:05]} Nd2 $2 {[%emt 0:13:16]} (44... Bh2+ $19 45. Kh1 Bg3) 45. Rh5 $17 {[%emt 0:00:56]} Nxf3+ {[%emt 0:00:09]} 46. Kh1 {[%emt 0:00:14]} Bg3 {[%emt 0:02:19] &Nero is more active.} 47. Bd6 $2 {[%emt 0:03:49][%mdl 8192] Now White is beyond hope.} ({Not} 47. g5 $2 Bh4 48. Rxh4 Nxh4 $19) (47. Rh3 $17) 47... Nh4 $19 {[%emt 0:02:27] Black is clearly winning.} 48. Rxh4 {[%emt 0:04:12]} Bxh4 {[%emt 0:00:02]} 49. g5 {[%emt 0:00:07]} e4 {[%emt 0:07:06][%cal Be5e4,Be4e3][%mdl 32] Strongly threatening ...e3.} 50. Bf4 {[%emt 0:00:31]} e3 {[%emt 0:01:11] Weighted Error Value: White=0.52/Black=0.32} 0-1

[Event "AUT Bundesliga 2021-22"]
[Site "Graz"]
[Date "2022.04.23"]
[Round "11.7"]
[White "Neugebauer, Martin"]
[Black "Bluebaum, Matthias"]
[Result "0-1"]
[ECO "A11"]
[WhiteElo "2502"]
[BlackElo "2642"]
[Annotator "TA"]
[PlyCount "102"]
[EventDate "2021.01.17"]
[EventType "team-tourn"]
[EventCountry "AUT"]
[SourceTitle "playchess.com"]
[Source "ChessBase"]
[SourceQuality "1"]
[TimeControl "40/5400+30:1800+30"]

{[%evp 13,102,0,3,10,14,13,6,7,15,0,28,26,19,15,20,15,27,0,14,6,5,6,8,13,10,0,-2,-14,-11,-11,-12,-16,-18,-58,-66,-88,-36,-29,-29,-47,-16,-20,-18,-31,-16,-16,-4,-49,-34,-42,-42,-68,-69,-160,-156,-157,-114,-201,-191,-158,-112,-143,-140,-152,-104,-104,-91,-133,-125,-258,-118,-118,-104,-274,-185,-183,-188,-290,-287,-316,-311,-860,-850,-943,-943,-29972,-29967,-29972,-29974,-5727,-5385]} 1. c4 {[%emt 0:00:05]} c6 {[%emt 0:04:16]} 2. Nf3 {[%emt 0:00:39]} d5 {[%emt 0:00:07]} 3. d4 {[%emt 0:00:16]} Nf6 {[%emt 0:00:05]} 4. Qb3 {[%emt 0:00:28]} dxc4 {[%emt 0:00:41]} 5. Qxc4 {[%emt 0:00:06]} Bf5 {[%emt 0:00:05]} 6. g3 {[%emt 0:00:25]} e6 {[%emt 0:00:49]} 7. Bg2 {[%emt 0:00:08]} Be7 {[%emt 0:00:13]} 8. O-O {[%emt 0:00:25] D23: Queen's Gambit Accepted: 3 Nf3 Nf6 sidelines.} O-O {[%emt 0:00:20]} 9. e3 {[%emt 0:00:23]} Nbd7 {[%emt 0:00:08]} 10. Rd1 {[%emt 0:01:05] The position is equal.} Qa5 {[%emt 0:03:41]} 11. Qe2 {[%emt 0:07:02]} Rac8 {[%emt 0:05:25]} 12. Nc3 {[%emt 0:06:39]} Ne4 {[%emt 0:02:31]} 13. Bd2 {[%emt 0:00:45] Strongly threatening Nxe4.} Nxd2 {[%emt 0:01:51]} 14. Nxd2 {[%emt 0:03:19]} Rfd8 {[%emt 0:04:13]} 15. Rac1 {[%emt 0:02:27]} h6 {[%emt 0:03:19] [#]} 16. Nb3 $146 {[%emt 0:07:56]} ({Predecessor:} 16. a3 a6 17. Nc4 Qc7 18. b4 Qb8 19. h4 Bh7 20. h5 Nf6 21. Ne5 a5 22. bxa5 Bxa3 {1-0 (29) Donchenko,A (2636)-Howell,D (2646) Warsaw 2021}) 16... Qb4 {[%emt 0:05:58]} 17. e4 {[%emt 0:04:40]} Bg6 {[%emt 0:02:31]} 18. d5 {[%emt 0:13:18]} Bf6 {[%emt 0:13:27]} 19. dxc6 {[%emt 0:08:24]} bxc6 {[%emt 0:01:26]} 20. f4 {[%emt 0:03:13]} Nc5 {[%emt 0:04:17]} 21. Nxc5 {[%emt 0:00:47]} Qxc5+ {[%emt 0:00:03]} 22. Kh1 {[%emt 0:00:19][%cal Oc3d5]} Rxd1+ {[%emt 0:04:48]} 23. Rxd1 {[%emt 0:02:57]} Bxc3 {[%emt 0:04:21]} 24. Rc1 {[%emt 0:02:04][%mdl 64] [#] Pin} Qa5 $1 25. bxc3 $15 {[%emt 0:03:52]} Rd8 {[%emt 0:00:20]} 26. h3 {[%emt 0:01:49]} Qa3 {[%emt 0:03:09]} 27. Rc2 {[%emt 0:00:34]} Qd6 {[%emt 0:01:57]} 28. Kh2 {[%emt 0:04:42]} f6 {[%emt 0:04:57]} 29. Rb2 {[%emt 0:01:14]} Qc5 {[%emt 0:00:37]} 30. Rd2 {[%emt 0:01:57]} Rxd2 {[%emt 0:01:32]} 31. Qxd2 {[%emt 0:00:04]} e5 {[%emt 0:00:07]} 32. Qd8+ {[%emt 0:04:26]} Kh7 {[%emt 0:00:34]} 33. Qc7 {[%emt 0:00:37] [#]} (33. fxe5 $15 fxe5 34. Qd3) 33... exf4 $1 $17 {[%emt 0:03:38]} ({And not} 33... Qxc3 34. f5 Bh5 35. g4 $11) 34. gxf4 {[%emt 0:00:07]} Qf2 {[%emt 0:00:09] ( -> ...Bxe4)} 35. Qxc6 {[%emt 0:03:55]} (35. f5 $17 Bh5 36. a3) 35... Qxf4+ $19 {[%emt 0:03:22]} 36. Kh1 {[%emt 0:00:15]} Qe5 {[%emt 0:02:24]} (36... a5 $142 37. Qc4 Qc1+ 38. Kh2 Qc2) 37. Qc4 {[%emt 0:05:46]} a5 {[%emt 0:00:42]} 38. Qd4 {[%emt 0:01:22]} Qc7 {[%emt 0:01:01]} ({Better is} 38... Qb5 {...Qb1+ is the strong threat.} 39. a3 Qb1+ 40. Kh2 Qb2) 39. c4 $17 {[%emt 0:06:47]} Bf7 {[%emt 0:00:26]} 40. Bf1 {[%emt 0:00:00]} Qg3 {[%emt 0:00:00]} 41. Bg2 {[%emt 0:10:39]} (41. Qd3 $17 Qf4 42. a3) 41... Be6 {[%emt 0:10:39]} (41... Qa3 $19 {and Black stays clearly on top.} 42. Qf2 Bxc4 43. Qf5+ Kh8) 42. c5 {[%emt 0:01:04]} Bxa2 {[%emt 0:06:09] 0x0.000e62c4cfb3dp-1022s more active pieces.} 43. Qd7 {[%emt 0:03:01] Inhibits Be6.} (43. Qa1 $17 {keeps fighting.} Be6 44. Qxa5) 43... Qe1+ {[%emt 0:04:47]} 44. Kh2 {[%emt 0:00:05]} Qc3 {[%emt 0:00:03] Threatens to win with ...Qe5+.} 45. c6 {[%emt 0:10:29]} (45. Qf5+ {was called for.} Kh8 46. c6) 45... Qe5+ $19 {[%emt 0:00:21]} 46. Kg1 {[%emt 0:00:28]} Be6 {[%emt 0:00:09] Inhibits Qf5+.} 47. Qa7 {[%emt 0:01:10]} (47. Qe7) 47... Qa1+ {[%emt 0:01:22]} 48. Kf2 {[%emt 0:01:35]} a4 {[%emt 0:01:11][%cal Ba5a4,Ba4a3][%mdl 32] Hoping for ...a3.} 49. Qe7 {[%emt 0:05:10]} Qa2+ {[%emt 0:02:37]} 50. Kg1 {[%emt 0:00:56]} a3 {[%emt 0:00:28]} 51. Bf1 {[%emt 0:02:37]} Qb3 {[%emt 0:00:30] Weighted Error Value: White=0.47/Black=0.11 (very precise)} 0-1

[Event "AUT Bundesliga 2021-22"]
[Site "Graz"]
[Date "2022.04.23"]
[Round "11.8"]
[White "Nisipeanu, Liviu-Dieter"]
[Black "Dobosz, Henryk"]
[Result "1-0"]
[ECO "D61"]
[WhiteElo "2652"]
[BlackElo "2384"]
[Annotator "TA"]
[PlyCount "45"]
[EventDate "2021.01.17"]
[EventType "team-tourn"]
[EventCountry "AUT"]
[SourceTitle "playchess.com"]
[Source "ChessBase"]
[SourceQuality "1"]
[TimeControl "40/5400+30:1800+30"]

{[%evp 20,45,60,68,83,85,91,87,86,105,103,83,229,236,280,256,281,262,264,258,309,275,314,337,333,262,238,246]} 1. d4 {[%emt 0:00:01]} d5 {[%emt 0:01:06]} 2. c4 {[%emt 0:00:35]} e6 {[%emt 0:00:07]} 3. Nc3 {[%emt 0:00:04]} Be7 {[%emt 0:00:11]} 4. Nf3 {[%emt 0:00:19]} Nf6 {[%emt 0:00:21]} 5. Bg5 {[%emt 0:00:05]} O-O {[%emt 0:04:05]} 6. e3 {[%emt 0:00:23]} Nbd7 {[%emt 0:02:05]} 7. Qc2 {[%emt 0:02:46]} c6 {[%emt 0:02:52]} 8. Bd3 {[%emt 0:04:56]} a6 {[%emt 0:08:35]} 9. O-O {[%emt 0:04:14]} dxc4 {[%emt 0:02:22]} 10. Bxc4 {[%emt 0:00:04]} b5 {[%emt 0:00:06]} 11. Bd3 {[%emt 0:01:48]} c5 {[%emt 0:00:40] D60: Queen's Gambit Declined: Classical: Unusual White 7th moves.} 12. dxc5 {[%emt 0:02:10] &Bianco is much more active. The black rooks are badly placed.} (12. Bxf6 {keeps more tension.} Nxf6 13. dxc5 Bxc5 14. Ne4) 12... Nxc5 {[%emt 0:03:08]} 13. Bxf6 {[%emt 0:05:12] [#]} gxf6 $146 {[%emt 0:02:05] White is better.} ({Predecessor:} 13... Bxf6 14. Bxh7+ Kh8 15. Ne4 Nxe4 16. Bxe4 Ra7 17. Qc5 {1-0 (17) Barlov,D (2469)-Mihalj,M (2323) Zlatibor 2007}) 14. Bxh7+ {[%emt 0:00:41]} Kg7 {[%emt 0:00:11]} 15. Be4 {[%emt 0:01:51]} Nxe4 {[%emt 0:05:30]} (15... Rb8 $16) 16. Qxe4 $18 {[%emt 0:00:12]} Ra7 {[%emt 0:07:43]} 17. Qg4+ {[%emt 0:00:18]} Kh7 {[%emt 0:00:10]} 18. Rad1 {[%emt 0:00:22]} Rd7 {[%emt 0:02:13]} 19. Rxd7 {[%emt 0:00:28]} Bxd7 {[%emt 0:00:21]} 20. Rd1 {[%emt 0:02:22]} Rg8 {[%emt 0:02:03]} 21. Qd4 {[%emt 0:04:42]} b4 {[%emt 0:01:50]} 22. Qxd7 {[%emt 0:00:43]} bxc3 {[%emt 0:00:18]} 23. bxc3 {[%emt 0:00:03] Black got outplayed after the opening.  Weighted Error Value: White=0.12 (very precise) /Black=0.34} 1-0

[Event "AUT Bundesliga 2021-22"]
[Site "Graz"]
[Date "2022.04.23"]
[Round "11.9"]
[White "Mira, Helene"]
[Black "Donchenko, Alexander"]
[Result "0-1"]
[ECO "A46"]
[WhiteElo "2090"]
[BlackElo "2636"]
[Annotator "TA"]
[PlyCount "54"]
[EventDate "2021.01.17"]
[EventType "team-tourn"]
[EventCountry "AUT"]
[SourceTitle "playchess.com"]
[Source "ChessBase"]
[SourceQuality "1"]
[TimeControl "40/5400+30:1800+30"]

{[%evp 10,54,8,-1,-5,-2,-13,-16,-22,-12,0,0,0,-37,-10,-20,0,-29,0,-54,-62,-54,-54,-122,-106,-125,-122,-137,-143,-140,-139,-181,-190,-211,-206,-207,-210,-241,-179,-339,-314,-327,-208,-515,-498,-583,-560]} 1. d4 {[%emt 0:00:16]} Nf6 {[%emt 0:00:18]} 2. Nf3 {[%emt 0:00:34]} e6 {[%emt 0:00:21]} 3. e3 {[%emt 0:03:55]} b6 {[%emt 0:01:00]} 4. Bd3 {[%emt 0:00:17]} Bb7 {[%emt 0:00:40]} 5. O-O {[%emt 0:00:24]} d5 {[%emt 0:02:56]} 6. Ne5 {[%emt 0:03:49]} Bd6 {[%emt 0:01:15] D05: Colle System with ...e6.} 7. f4 {[%emt 0:00:06]} O-O {[%emt 0:00:53]} 8. Nd2 {[%emt 0:06:56]} c5 {[%emt 0:03:40] The position is equal.} 9. b3 {[%emt 0:00:17]} b5 {[%emt 0:03:08] [#]} 10. dxc5 $146 {[%emt 0:09:13]} ({Predecessor:} 10. c3 b4 11. Bb2 bxc3 12. Bxc3 Nc6 13. Rc1 Rc8 14. Qf3 Qe7 15. Qh3 h6 16. f5 cxd4 17. exd4 {0-1 (68) Slavin,A (2391)-Akopian,V (2660) Jerusalem 2015}) 10... Bxc5 {[%emt 0:00:21]} 11. Ndf3 {[%emt 0:00:23]} Qb6 {[%emt 0:01:08]} 12. Qe2 {[%emt 0:00:07]} b4 {[%emt 0:06:02]} 13. Re1 {[%emt 0:01:14]} Ne4 {[%emt 0:02:13]} 14. Bb2 {[%emt 0:00:42]} (14. Ng5 $1 $11 Nf6 15. Ng4) 14... f6 $36 {[%emt 0:01:38][%mdl 2048] Black has the initiative.} 15. Ng4 {[%emt 0:04:11]} Nc6 {[%emt 0:02:57][%cal Bb8c6,Bc6e7,Be7f5][%mdl 32]} 16. Bxe4 {[%emt 0:03:44]} ({White should play} 16. Nf2 $15) 16... dxe4 $17 {[%emt 0:00:14]} 17. Nd2 {[%emt 0:00:05] [#]} Ne7 $1 {[%emt 0:00:33]} 18. Nc4 {[%emt 0:02:43]} Qc7 {[%emt 0:01:57]} 19. Kh1 {[%emt 0:02:33]} a5 {[%emt 0:03:08]} 20. a3 {[%emt 0:02:58]} Nf5 {[%emt 0:03:10]} 21. axb4 {[%emt 0:04:29]} axb4 {[%emt 0:00:25]} 22. c3 {[%emt 0:07:06]} bxc3 {[%emt 0:02:38]} 23. Bxc3 {[%emt 0:00:09]} Bd5 {[%emt 0:00:21] This bishop pair is nice.} 24. Rec1 $2 {[%emt 0:04:57] [#]} (24. Rab1 {was worth a try.}) 24... Rxa1 $19 {[%emt 0:00:45]} 25. Rxa1 {[%emt 0:00:08]} Rb8 {[%emt 0:01:26]} 26. Qc2 $2 {[%emt 0:06:06]} (26. Bxf6 {is tougher.} gxf6 27. Nxf6+ Kh8 28. g4 Bxc4 29. Qxc4 Nxe3 30. Qxe4) 26... h5 {[%emt 0:01:29]} 27. Nf2 {[%emt 0:01:06]} Nxe3 {[%emt 0:00:24] Weighted Error Value: White=0.41/Black=0.14 (very precise)} 0-1

[Event "AUT Bundesliga 2021-22"]
[Site "Graz"]
[Date "2022.04.23"]
[Round "11.10"]
[White "Svane, Rasmus"]
[Black "Kozissnik, Christian"]
[Result "1-0"]
[ECO "A43"]
[WhiteElo "2637"]
[BlackElo "2018"]
[Annotator "TA"]
[PlyCount "33"]
[EventDate "2021.01.17"]
[EventType "team-tourn"]
[EventCountry "AUT"]
[SourceTitle "playchess.com"]
[Source "ChessBase"]
[SourceQuality "1"]
[TimeControl "40/5400+30:1800+30"]

{[%evp 9,33,47,112,129,144,137,121,53,145,154,155,147,160,157,173,165,170,161,392,171,165,161,233,229,29993,29994]} 1. d4 {[%emt 0:00:03]} c5 {[%emt 0:00:02]} 2. d5 {[%emt 0:00:24]} d6 {[%emt 0:00:02]} 3. e4 {[%emt 0:00:42]} g6 {[%emt 0:00:01]} 4. Nf3 {[%emt 0:01:44]} Bg7 {[%emt 0:00:02]} 5. Nc3 {[%emt 0:00:11]} e6 {[%emt 0:00:03]} ({Black should play} 5... Nf6 $14) 6. dxe6 $16 {[%emt 0:02:21] [#] A43: Schmid Benoni.} Bxc3+ $146 {[%emt 0:03:38]} ({Predecessor:} 6... Bxe6 7. Bf4 Bxc3+ 8. bxc3 Qa5 9. Qd2 Nc6 10. Be2 O-O-O 11. O-O Ne5 12. Qe3 f6 {1-0 (31) Song,G (2145)-Dahlgren,J (1858) Chess.com INT 2022}) 7. bxc3 {[%emt 0:00:43] Hoping for exf7+.} Bxe6 {[%emt 0:00:03]} 8. Rb1 {[%emt 0:04:48]} (8. Bb5+ $16 Nc6 9. O-O) 8... Ne7 {[%emt 0:30:41]} ({Better is} 8... Nf6 $14) 9. Rxb7 {[%emt 0:03:58]} O-O {[%emt 0:00:07]} 10. Bh6 {[%emt 0:07:03]} Re8 {[%emt 0:01:37][%cal Oe7f5] [#]} 11. Bb5 $1 {[%emt 0:02:38] 0x0.00018dd7ffe2dp-1022s more active pieces.} Qc8 {[%emt 0:22:35]} 12. Bxe8 {[%emt 0:09:32] This bishop pair is nice.} ({Don't play} 12. Qxd6 $6 Qxb7 13. Bxe8 (13. Qe5 $2 Nf5 $19) 13... Qxe4+ 14. Kd1 Nbc6 $14) 12... Qxb7 {[%emt 0:00:49]} 13. O-O {[%emt 0:12:51]} ({Resist} 13. Qxd6 $6 Qxe4+ 14. Kd2 Nbc6 $14) 13... Nbc6 $2 {[%emt 0:07:22] [#]} (13... Nd7) 14. Bxc6 {[%emt 0:16:31]} (14. Bxf7+ $142 $1 {[%mdl 512]} Bxf7 15. Qxd6 Bxa2 16. Qf6) 14... Qxc6 $18 {[%emt 0:00:06]} 15. Re1 {[%emt 0:01:23][%cal Of3d4] And now Nd4! would win.} Re8 {[%emt 0:17:24]} (15... Qd7 $142 16. c4 Nc6) 16. c4 {[%emt 0:01:07] White wants to mate with Qa1.} Bxc4 $2 {[%emt 0:09:04]} (16... Qc7 $18 17. Qa1 f6 18. Qxf6 Nc6) 17. Qa1 {[%emt 0:02:00] Weighted Error Value: White=0.30/Black=1.04} 1-0

[Event "AUT Bundesliga 2021-22"]
[Site "Graz"]
[Date "2022.04.23"]
[Round "11.11"]
[White "Amann, Harald"]
[Black "Acs, Peter"]
[Result "0-1"]
[ECO "D45"]
[WhiteElo "1913"]
[BlackElo "2591"]
[Annotator "TA"]
[PlyCount "42"]
[EventDate "2021.01.17"]
[EventType "team-tourn"]
[EventCountry "AUT"]
[SourceTitle "playchess.com"]
[Source "ChessBase"]
[SourceQuality "1"]
[TimeControl "40/5400+30:1800+30"]

{[%evp 17,42,-16,-2,-17,-13,-28,-17,-21,-8,-67,-41,-152,-183,-497,-502,-491,-502,-740,-777,-750,-769,-769,-716,-951,-535,-1335,-1269]} 1. d4 {[%emt 0:00:04]} Nf6 {[%emt 0:00:12]} 2. c4 {[%emt 0:00:14]} e6 {[%emt 0:01:22]} 3. Nf3 {[%emt 0:00:24]} d5 {[%emt 0:00:37]} 4. Nc3 {[%emt 0:00:46]} c6 {[%emt 0:00:40]} 5. e3 {[%emt 0:00:17]} Nbd7 {[%emt 0:00:30][%cal Bb8d7,Bd7e5,Be5f3][%mdl 32]} 6. Bd2 {[%emt 0:00:46]} Bd6 {[%emt 0:03:02]} 7. Qc2 {[%emt 0:00:00]} O-O {[%emt 0:01:36]} 8. Be2 {[%emt 0:02:09]} dxc4 {[%emt 0:10:34]} 9. Bxc4 {[%emt 0:01:11]} e5 {[%emt 0:00:38]} 10. dxe5 {[%emt 0:12:32] D46: Semi-Slav: 5 e3 Nbd7 6 Bd3, Black avoids the Meran.} Nxe5 {[%emt 0:00:52]} 11. Be2 {[%emt 0:00:40]} Qe7 {[%emt 0:08:58]} 12. O-O {[%emt 0:07:32] [#] The position is equal.} Re8 $146 {[%emt 0:11:18]} ({Predecessor:} 12... Nfg4 13. g3 Nxf3+ 14. Bxf3 Ne5 15. Bg2 Bg4 16. f3 Be6 17. b3 Rad8 18. f4 Ng4 {0-1 (34) Cossa,P (1969)-Ajibola,O (2124) Maputo 2011}) 13. Rfe1 {[%emt 0:06:46]} (13. Nd4 $11) 13... Nfg4 {[%emt 0:09:04] Threatens to win with ...Nxf3+.} 14. g3 {[%emt 0:11:38]} ({Better is} 14. h3 $15 Nxf3+ 15. Bxf3) 14... Qf6 $36 {[%emt 0:06:45][%mdl 2048] Keeping White busy.} 15. Kg2 {[%emt 0:09:09]} (15. Qd1 {was the crucial defense.}) 15... Nxf3 $19 {[%emt 0:09:32] Black is clearly winning.} 16. Bxf3 {[%emt 0:07:24] [#]} Nxh2 $1 {[%emt 0:02:01][%mdl 512]} 17. Be4 {[%emt 0:00:02] [#]} (17. Be2 Qh6) 17... Bh3+ $1 {[%emt 0:04:02][%mdl 512]} 18. Kxh3 {[%emt 0:11:16]} Qxf2 {[%emt 0:00:10][%csl Gd6][%cal Rf2g3]} 19. Rg1 {[%emt 0:00:41]} Re6 {[%emt 0:01:45][%cal Re6h6]} 20. Bxh7+ {[%emt 0:01:29]} Kh8 {[%emt 0:00:22][%cal Re6h6]} 21. e4 {[%emt 0:04:16][%cal Og1g2] Hoping for Rg2!} g5 {[%emt 0:01:28] White got outplayed after the opening.  Weighted Error Value: White=1.29/Black=0.33} 0-1